Cogmind - Beta 13 @@@ ROGUE MODE // 2024.05.13 @ 16:23:50 Player: Skrub Result: Destroyed by S-10 Pest with Light Assault Rifle Performance ------------- Evolutions (2) 1000 Regions Visited (5) 1000 Robots Destroyed (75) 375 Value Destroyed (2177) 2177 Prototype IDs (6) 120 Alien Tech Used (0) 0 Bonus (617) 617 TOTAL SCORE: 5289 Bonus ------- High Alert Combat Kills 383 Follower Combat Kills 234 Cogmind --------- Core Integrity 0/550 Matter 300/300 Energy 99/100 System Corruption 1% Temperature Warm (136) Movement Core (150) Ox2 Location -8/Materials Parts ------- > --- POWER (2) -------- (None) > --- PROPULSION (2) --- (None) > --- UTILITY (5) ------ Signal Interpreter Hardened Medium Armor Plating Hacking Suite > --- WEAPON (2) ------- (None) > --- INVENTORY (5) ---- Compact Matter Pod (150) Shotgun Peak State ------------ > --- POWER ------------ Deuterium Engine Light Angular Momentum Engine > --- PROPULSION ------- Light Treads Light Treads > --- UTILITY ---------- Heat Sink Signal Interpreter Light Armor Plating Light Armor Plating Splice Drone Bay > --- WEAPON ----------- Heavy Particle Cannon Makeshift Shrapnel Gun > --- INVENTORY -------- Deuterium Engine Deuterium Engine Light Treads Heavy Particle Cannon Mini Grenade Launcher [Rating: 29] Favorites ----------- Power Deuterium Engine Engine Deuterium Engine Power Core Light Nuclear Core Propulsion Light Treads Treads Light Treads Leg Aluminum Leg Utility Signal Interpreter Device Splice Drone Bay Storage Medium Matter Pod Processor Signal Interpreter Hackware Hacking Suite Protection Light Armor Plating Weapon Heavy Particle Cannon Energy Gun Medium Laser Energy Cannon Heavy Particle Cannon Ballistic Gun Makeshift Shrapnel Gun Launcher Mini Grenade Launcher Build | -11 -10 -10 -9 -9 -8 ------- Run | Yrd Mat Min Mat Min Mat Slots Evolved 4 | . . . 2 . 2 Power 1 | . . . 1 . . Propulsion . | . . . . . . Utility 3 | . . . 1 . 2 Weapon . | . . . . . . Parts Attached 58 | 5 17 1 12 . 23 Power 12 | 1 3 . 5 . 3 Engine 7 | 1 . . 4 . 2 Core 5 | . 3 . 1 . 1 Reactor . | . . . . . . Propulsion 10 | 2 2 . 3 . 3 Treads 8 | 2 . . 3 . 3 Leg 2 | . 2 . . . . Wheel . | . . . . . . Hover . | . . . . . . Flight . | . . . . . . Utility 12 | . 3 1 2 . 6 Device 5 | . 2 1 . . 2 Storage 1 | . . . 1 . . Processor 1 | . 1 . . . . Hackware 2 | . . . . . 2 Protection 3 | . . . 1 . 2 Artifact . | . . . . . . Weapon 24 | 2 9 . 2 . 11 Energy Gun 12 | 2 5 . . . 5 Energy Cannon 3 | . . . 2 . 1 Ballistic Gun 4 | . . . . . 4 Ballistic Cannon . | . . . . . . Launcher 5 | . 4 . . . 1 Special Weapon . | . . . . . . Impact Weapon . | . . . . . . Slashing Weapon . | . . . . . . Piercing Weapon . | . . . . . . Special Melee Weapon . | . . . . . . Unidentified Prototypes 6 | . . 1 . . 5 Corrupted Parts 1 | . 1 . . . . System Corruption 3 | . 3 . . . . Parts Lost 26 | . 4 . . . 22 Power 6 | . 1 . . . 5 Propulsion 5 | . 1 . . . 4 Utility 7 | . 1 . . . 6 Weapon 8 | . 1 . . . 7 Highest Loss Streak 5 | . 3 . . . 5 To Critical Strikes . | . . . . . . Average Slot Usage (%) 90 | . 88 100 88 100 78 Engine 10 | . 3 . 20 22 13 Core 5 | . 10 14 1 . . Treads 12 | . 16 . 12 22 13 Leg 10 | . 10 28 9 . . Device 10 | . 7 14 11 11 10 Processor 11 | . 10 14 11 11 9 Hackware 2 | . . . . . 8 Protection 3 | . . . . 11 5 Energy Gun 13 | . 26 28 4 . 6 Energy Cannon 7 | . . . 18 22 3 Naked Turns . | . . . . . . Heaviest Build 45 | 9 12 18 41 41 45 Greatest Support 40 | 40 40 20 40 40 40 Greatest Overweight (x) 3 | . 3 . 1 1 3 Average Overweight (x) . | . . . . 1 . Largest Inventory Capacity 5 | 5 5 5 5 5 5 Average Capacity 5 | 5 5 5 5 5 5 Most Carried 5 | 2 5 5 5 5 5 Average Carried 4 | . 3 5 4 4 3 Final Capacity 5 | 5 5 5 5 5 5 Final Carried 5 | 1 5 5 5 5 2 Class Distribution -------------------- 64% | Scavenger-Mutant 27% | Mutant 8% | Hacker-Mutant Dominant Class ---------------- Mutant | -10/Materials Scavenger-Mutant | -10/Mines Mutant | -9/Materials Scavenger-Mutant | -9/Mines Scavenger-Mutant | -8/Materials Resources | -11 -10 -10 -9 -9 -8 ----------- Run | Yrd Mat Min Mat Min Mat Matter Collected 1423 | 148 348 131 89 17 690 Remotely . | . . . . . . Salvage Created 2685 | . 411 383 113 62 1716 Parts 140 | . 33 13 6 6 82 Haulers Intercepted 2 | . . . . . 2 Recyclers Shooed 4 | . . 4 . . . Parts Field Recycled . | . . . . . . Retrieved Matter . | . . . . . . Parts Self-Destructed . | . . . . . . Prevented . | . . . . . . Kills | -11 -10 -10 -9 -9 -8 ------- Run | Yrd Mat Min Mat Min Mat Combat Hostiles Destroyed 48 | . 8 1 2 2 35 Guns 25 | . 8 1 . . 16 Cannons 9 | . . . 1 2 6 AOE 13 | . . . . . 13 Classes Destroyed 14 | . 5 2 1 . 6 Worker 11 | . 1 5 . . 5 Builder 5 | . 1 . . . 4 Tunneler 1 | . . . . . 1 Hauler 2 | . . . . . 2 Recycler 5 | . . 3 . . 2 Operator 2 | . 2 . . . . Watcher 2 | . 2 . . . . Swarmer 6 | . . 1 . 1 4 Grunt 30 | . 8 . . 1 21 Duelist 1 | . . . . . 1 Sentry 7 | . . . 2 . 5 Specialist 2 | . . . . . 2 Hunter 1 | . . . . . 1 Programmer 1 | . . . . . 1 Best Kill Streak 15 | . 5 4 1 1 15 Combat Bots Only 8 | . 4 1 1 1 8 Max Kills in Single Turn 4 | . 1 1 1 1 4 Gunslinging . | . . . . . . Exploded 3 | . . . . . 3 Melee . | . . . . . . Uniques/NPCs Destroyed . | . . . . . . Combat | -11 -10 -10 -9 -9 -8 -------- Run | Yrd Mat Min Mat Min Mat Hostile Shots Fired 307 | . 44 8 11 2 242 Missed 83 | . 8 4 3 1 67 Damage Taken 3371 | . 534 30 116 6 2685 Core 663 | . 102 7 . . 554 Absorbed by Shields 160 | . 52 . . . 108 Regen/Repaired (Parts) 142 | . . . 16 . 126 Core Remaining (%) 85 | 100 . 56 . 100 . Volleys Fired 171 | . 38 25 3 3 102 Largest 2 | . 2 2 2 2 2 Hottest 150 | . 112 106 150 150 150 Shots Fired 309 | . 71 50 6 6 176 Gun 253 | . 65 50 . . 138 Cannon 33 | . . . 6 6 21 Launcher 23 | . 6 . . . 17 Special . | . . . . . . Kinetic 48 | . . . . . 48 Thermal 189 | . 43 50 6 6 84 Explosive 23 | . 6 . . . 17 Electromagnetic 49 | . 22 . . . 27 Robot Hit Streak 13 | . 6 12 5 1 13 Robot Miss Streak 3 | . 3 2 . 2 3 Penetration Max 1 | . . . . . 1 Secondary Targets 5 | . 2 . . . 3 Max Gunslinging Chain 1 | . 1 . . . 1 Shots Hit Robots 194 | . 40 32 4 2 116 Core Hits 125 | . 25 12 1 2 85 Critical Kills 1 | . . . 1 . . Critical Parts Destroyed . | . . . . . . Critical Strikes 8 | . 1 2 1 . 4 Burn 7 | . 1 2 . . 4 Meltdown 1 | . . . 1 . . Melee Attacks . | . . . . . . Impact . | . . . . . . Slashing . | . . . . . . Piercing . | . . . . . . Sneak Attacks . | . . . . . . Combat Hostiles . | . . . . . . Follow-up Attacks . | . . . . . . Damage Inflicted 5257 | . 787 449 100 50 3871 Guns 2955 | . 544 449 . . 1962 Cannons 500 | . . . 100 50 350 Explosions 1802 | . 243 . . . 1559 Melee . | . . . . . . Ramming . | . . . . . . Kinetic 655 | . . . . . 655 Thermal 2460 | . 352 449 100 50 1509 Explosive 1462 | . 243 . . . 1219 Electromagnetic 680 | . 192 . . . 488 Impact . | . . . . . . Slashing . | . . . . . . Piercing . | . . . . . . Highest Corruption 5 | . 5 5 . . 1 Average Corruption 3 | . 4 5 . . 1 Corruption Purged . | . . . . . . Corruption Blocked . | . . . . . . Effects 47 | . 17 26 . . 4 Message Errors 5 | . 1 4 . . . Matter Fused 16 | . 6 9 . . 1 Heat Flow Errors 7 | . 3 3 . . 1 Energy Discharges 4 | . 2 2 . . . Parts Rejected 1 | . 1 . . . . Parts Fused 1 | . 1 . . . . Data Loss (minor) 5 | . 1 3 . . 1 Data Loss (major) 3 | . 1 2 . . . Misfires 2 | . 1 1 . . . Alerts 1 | . . 1 . . . Weapon Failures 2 | . . 1 . . 1 Overload Shots . | . . . . . . Overflow Damage 63 | . 10 . . . 53 Projectiles . | . . . . . . Explosions 63 | . 10 . . . 53 Melee . | . . . . . . Knockbacks . | . . . . . . Impact . | . . . . . . Kinetic . | . . . . . . Secondary . | . . . . . . Self-Inflicted Damage 363 | . 80 . . . 283 Shots 10 | . 3 . . . 7 Rammed 2 | . . . . 1 1 Targets Rammed 3 | . 1 . . 1 1 Kicked 1 | . 1 . . . . Crushed . | . . . . . . Highest Temperature 533 | . 533 259 114 228 401 Average Temperature 113 | . 140 71 58 99 121 Received Heat Transfer 1349 | . 233 . 36 . 1080 Effects 9 | . 7 . . . 2 Shutdowns 3 | . 2 . . . 1 Energy Bleed 1 | . . . . . 1 Interference 1 | . 1 . . . . Matter Decay 1 | . 1 . . . . Short Circuit 2 | . 2 . . . . Damage (minor) 1 | . 1 . . . . Siege Activations . | . . . . . . Robots Corrupted . | . . . . . . Combat Hostiles . | . . . . . . Parts Fried 2 | . 2 . . . . Impact Corruptions . | . . . . . . Robots Melted 1 | . . . 1 . . Combat Hostiles 1 | . . . 1 . . Parts Melted 13 | . 3 3 2 . 5 Heat Transferred 5395 | . 999 1369 148 74 2805 Parts Sabotaged . | . . . . . . Parts Stolen . | . . . . . . Parts Stripped . | . . . . . . Power Chain Reactions 3 | . . . . . 3 Alert | -11 -10 -10 -9 -9 -8 ------- Run | Yrd Mat Min Mat Min Mat Peak Influence 837 | . 214 278 178 173 837 Initial 83 | . . 83 . 69 5 Average 180 | . 118 102 63 84 472 Maximum Alert Level 3 | . 1 1 . . 3 Low Security (%) 72 | 100 72 81 100 100 20 Level 1 12 | . 27 18 . . 14 Level 2 7 | . . . . . 32 Level 3 7 | . . . . . 32 Level 4 . | . . . . . . Level 5 . | . . . . . . High Security . | . . . . . . Max Security . | . . . . . . Squads Dispatched 16 | . 4 . . . 12 Investigation 6 | . 1 . . . 5 Extermination . | . . . . . . Reinforcement 7 | . 3 . . . 4 Assault . | . . . . . . Garrison 3 | . . . . . 3 Intercept . | . . . . . . Searches Triggered . | . . . . . . Construction Impeded 1 | . . . . . 1 Haulers Reinforced . | . . . . . . Active Scanning Responses . | . . . . . . Cargo Convoy Interrupts . | . . . . . . Stealth | -11 -10 -10 -9 -9 -8 --------- Run | Yrd Mat Min Mat Min Mat Distress Signals 4 | . 2 . . 1 1 Communications Jammed . | . . . . . . Distress Signals . | . . . . . . Times Spotted 97 | . 19 6 14 9 49 Peak Tracking Total 8 | . 3 3 8 3 8 Tactical Retreats 7 | . 1 . 1 . 5 Traps | -11 -10 -10 -9 -9 -8 ------- Run | Yrd Mat Min Mat Min Mat Traps Triggered 4 | . 3 . . . 1 Indirectly . | . . . . . . Trap Hack Attempts . | . . . . . . Triggered . | . . . . . . Disarmed . | . . . . . . Reprogrammed 6 | . 6 . . . . Reused . | . . . . . . Traps Extracted . | . . . . . . Installed . | . . . . . . Triggered . | . . . . . . Objects Rigged 5 | . . . 4 . 1 Exploded 1 | . . . . . 1 Machines | -11 -10 -10 -9 -9 -8 ---------- Run | Yrd Mat Min Mat Min Mat Machines Disabled 10 | . 1 . . . 9 Max in Single Turn 1 | . 1 . . . 1 Machines Repaired . | . . . . . . Machines Dismantled . | . . . . . . Machines Sabotaged . | . . . . . . Overloaded Fab Kills . | . . . . . . Hacking | -11 -10 -10 -9 -9 -8 --------- Run | Yrd Mat Min Mat Min Mat Machines Accessed 18 | . 6 1 5 . 6 Terminals 11 | . 4 . 4 . 3 Fabricators . | . . . . . . Repair Stations 2 | . . . 1 . 1 Recycling Units 2 | . 2 . . . . Scanalyzers 1 | . . . . . 1 Garrison Access 1 | . . . . . 1 Total Hacks 54 | . 17 1 21 . 15 Successful 30 | . 8 1 13 . 8 Failed 24 | . 9 . 8 . 7 Catastrophic 1 | . . . . . 1 Database Lockouts . | . . . . . . Manual 46 | . 17 . 18 . 11 Terminals 37 | . 11 . 17 . 9 Fabricators . | . . . . . . Repair Stations 6 | . . . 4 . 2 Recycling Units 6 | . 6 . . . . Scanalyzers 1 | . . . . . 1 Garrison Access 3 | . . . . . 3 Terminal Hacks 3 | . 2 1 . . . Open Door 1 | . . 1 . . . Locate Traps 1 | . 1 . . . . Reprogram Traps 1 | . 1 . . . . Fabricator Hacks . | . . . . . . Repair Station Hacks 4 | . . . 2 . 2 Scan Component 2 | . . . 1 . 1 Repair 2 | . . . 1 . 1 Recycling Unit Hacks . | . . . . . . Scanalyzer . | . . . . . . Garrison Access Hacks . | . . . . . . Unauthorized Hacks 23 | . 6 . 11 . 6 Terminals 15 | . 1 . 10 . 4 Assimilate 2 | . . . 2 . . Botnet 7 | . 1 . 4 . 2 Detonate 3 | . . . 2 . 1 Operators 3 | . . . 2 . 1 Fabricators . | . . . . . . Repair Stations 1 | . . . 1 . . Mechanics 1 | . . . 1 . . Recycling Units 5 | . 5 . . . . Reject 2 | . 2 . . . . Recyclers 2 | . 2 . . . . Tunnel 1 | . 1 . . . . Scanalyzers 1 | . . . . . 1 Extract 1 | . . . . . 1 Garrison Access 1 | . . . . . 1 Restock 1 | . . . . . 1 Data Cores Recovered . | . . . . . . Used . | . . . . . . Hacking Detections 13 | . 3 . 5 . 5 Full Trace Events 5 | . . . 1 . 4 Feedback Events . | . . . . . . Feedback Blocked . | . . . . . . Robot Schematics Acquired . | . . . . . . Robots Built . | . . . . . . Authchips . | . . . . . . Time . | . . . . . . Total Robot Build Rating . | . . . . . . Part Schematics Acquired 2 | . . . . . 2 Parts Built . | . . . . . . Authchips . | . . . . . . Time . | . . . . . . Total Part Build Rating . | . . . . . . Parts Repaired 2 | . . . 1 . 1 Time 51 | . . . 38 . 13 Parts Recycled . | . . . . . . Recycled Matter . | . . . . . . Retrieved Matter . | . . . . . . Retrieved Components . | . . . . . . Parts Scanalyzed . | . . . . . . Part Schematics Acquired . | . . . . . . Parts Damaged . | . . . . . . Bothacking | -11 -10 -10 -9 -9 -8 ------------ Run | Yrd Mat Min Mat Min Mat Used RIF Installer . | . . . . . . Robots Hacked . | . . . . . . Non-combat . | . . . . . . Combat . | . . . . . . Robot Hacks Applied . | . . . . . . Relay Couplers Released 4 | . . . . . 4 Programmers 4 | . . . . . 4 Fabnet Peak Effective % . | . . . . . . Robots Rewired . | . . . . . . Allies Hacked . | . . . . . . Hacks Repelled . | . . . . . . Allies | -11 -10 -10 -9 -9 -8 -------- Run | Yrd Mat Min Mat Min Mat Total Allies 9 | . . 2 3 3 1 Largest Group 3 | . . 2 3 1 1 Highest-Rated Group 45 | . . 45 41 16 15 Highest-Rated Ally 31 | . . 31 31 16 15 Total Orders 3 | . . . . 2 1 EXPLORE 3 | . . . . 2 1 Ally Attacks 106 | . . 10 50 32 14 Total Damage 761 | . . 168 356 184 53 Kills 17 | . . 6 7 3 1 Allies Corrupted . | . . . . . . Allies Melted . | . . . . . . Intel | -11 -10 -10 -9 -9 -8 ------- Run | Yrd Mat Min Mat Min Mat Robot Analysis Total . | . . . . . . Derelict Logs Recovered 4 | . . 2 . 2 . Drone Launches 82 | . . 2 40 26 14 Drone Recoveries 78 | . . . 36 28 14 Exploration | -11 -10 -10 -9 -9 -8 ------------- Run | Yrd Mat Min Mat Min Mat Turns Passed 4022 | 66 741 941 653 687 934 Spaces Moved 1995 | 40 404 704 292 259 296 Core 57 | 7 11 . . . 39 Treads 917 | 33 178 . 190 259 257 Legs 1021 | . 215 704 102 . . Wheels . | . . . . . . Hover . | . . . . . . Flight . | . . . . . . Fastest Speed 50 | 50 100 120 160 240 50 Average Speed 156 | 140 139 120 175 240 174 Slowest Speed 240 | 160 200 120 240 240 240 Overloaded Moves . | . . . . . . Propulsion Burnouts . | . . . . . . Robots Hopped . | . . . . . . Cave-ins Triggered . | . . . . . . Exploration Rate (%) 48 | 4 66 95 31 62 33 Regions Visited 5 Branch Regions 2 Pre-discovered Areas 4 | . 1 1 . 2 . Known Exits Taken 4 | . 1 1 1 1 . Unknown Exits Taken 1 | 1 . . . . . Scrap Searched 1 | . . 1 . . . Spaces Dug . | . . . . . . Terrain Destroyed 143 | . 39 . 2 4 98 Melee . | . . . . . . Projectile 14 | . . . 2 4 8 AOE 129 | . 39 . . . 90 Terrain Rammed . | . . . . . . Walls Destroyed . | . . . . . . Machines Disabled . | . . . . . . Actions | -11 -10 -10 -9 -9 -8 --------- Run | Yrd Mat Min Mat Min Mat Total 2593 | 50 513 750 429 318 533 Wait 306 | . 29 20 108 54 95 Move 1990 | 39 403 703 291 258 296 Hop . | . . . . . . Pick Up 38 | 6 15 . 5 1 11 Fast Attach 16 | . 3 1 6 . 6 Attach 28 | 5 9 . 2 . 12 Detach 4 | . 3 . . . 1 Swap 15 | . 5 . 4 . 6 Drop 22 | . 7 1 10 1 3 Fire 171 | . 38 25 3 3 102 Melee . | . . . . . . Ram 1 | . . . . . 1 Kick 1 | . 1 . . . . Crush 1 | . . . . 1 . Escape Stasis . | . . . . . . Rewire . | . . . . . . Trap . | . . . . . . Miscellaneous . | . . . . . . Route ------- -11/Scrapyard -10/Materials (discovered 2 exits: *Mat / *Min) -10/Mines (discovered 2 exits: *Mat x2) -9/Materials -9/Mines (discovered 2 exits: *Mat x2) -8/Materials History --------- Turn | Location | Event 40 | -11/Scrapyard | Discovered new exit (range 13) 67 | -11/Scrapyard | Entered Materials 239 | -10/Materials | Discovered new exit (range 14) 308 | -10/Materials | Build established: Mutant 531 | -10/Materials | Lost 3 parts (1p1n1w) 619 | -10/Materials | Discovered new exit (range 6) 623 | -10/Materials | Identified exit to Materials 779 | -10/Materials | Build established: Scavenger-Mutant 807 | -10/Materials | Identified exit to Mines 808 | -10/Materials | Entered Mines 822 | -10/Mines | Met a Derelict bent on vengeance 931 | -10/Mines | Discovered exit to Materials (range 10) 1046 | -10/Mines | Learned Materials security intel 1234 | -10/Mines | Learned location of Mines (-8) 1273 | -10/Mines | Discovered exit to Materials (range 10) 1530 | -10/Mines | Found the Drone Emporium 1538 | -10/Mines | Found Prototype Device 1538 | -10/Mines | Identified Splice Drone Bay 1749 | -10/Mines | Entered Materials 1749 | -9/Materials | Accompanied by 3 allies 1749 | -9/Materials | Evolved 2 slots: Power x1, Utility x1 1754 | -9/Materials | Led the pair of lost Derelicts to an unsafe place 1817 | -9/Materials | Repaired Lgt. Nuclear Core 2157 | -9/Materials | Build established: Mutant 2315 | -9/Materials | Discovered new exit (range 7) 2400 | -9/Materials | Identified exit to Mines 2402 | -9/Materials | Entered Mines 2402 | -9/Mines | Accompanied by 4 allies 2486 | -9/Mines | Learned location of Storage (-8) 2570 | -9/Mines | Build established: Scavenger-Mutant 2575 | -9/Mines | A weapon hastily lodged in a ceiling crevice suddenly fell to the ground 2608 | -9/Mines | Learned location of Zion (-7) 2611 | -9/Mines | Discovered new exit (range 6) 2627 | -9/Mines | Identified exit to Materials 2734 | -9/Mines | Discovered exit to Materials (range 37) 2809 | -9/Mines | Lost 3 allies 2897 | -9/Mines | Joined a pair of Derelicts in attacking an 0b10 outpost 3089 | -9/Mines | Entered Materials 3089 | -8/Materials | Evolved 2 slots: Utility x2 3447 | -8/Materials | Destroyed 8 combat bots 3537 | -8/Materials | Repaired Lgt. Treads 3714 | -8/Materials | Lost 5 parts (2p1n1u1w) 3793 | -8/Materials | Lost 3 parts (1p1n1u) 3908 | -8/Materials | Core integrity fell below 50% 3942 | -8/Materials | Lost 3 parts (1n2w) 4001 | -8/Materials | Core integrity fell below 20% 4023 | -8/Materials | Destroyed by S-10 Pest with Light Assault Rifle Last Messages --------------- 04009_ K-01 Serf collects debris. 04010_ X-57 Shotgunner overheating. 04010_ Melted Hpw. Shotgun. 04011_ X-57 Shotgunner overheating. 04011_ K-01 Serf collects debris. 04012_ X-57 Shotgunner overheating. 04012_ Hrd. Medium Armor Plating melted. 04012_ Imp. Heat Sink melted. 04012_ X-57 Shotgunner destroyed. 04012_ K-01 Serf collects debris. 04013_ S-10 Pest destroyed. 04014_ Imp. Medium Laser destroyed. 04014_ K-01 Serf collects debris. 04014_ Acquired 5 matter. 04015_ K-01 Serf collects debris. 04016_ System corrupted: Heat flow error (+238). 04018_ K-01 Serf collects debris. 04019_ Acquired Shotgun. 04020_ K-01 Serf collects debris. 04021_ Slammed into S-10 Pest. Map ----- +----------------------------------------------------+ | ????????????????????????????????# ? | | ????????????????????????????????# ? | | ?????????????????????????######## ? | | ?????????????????????????# # ########### ?? | | ?????????????????????????# #!= #??########??? | | ?????????????????????????# " "" #%| #?? # ?? | | ?????????????????????????# "R"" += #?? /??? | | ?????????????????????????# """ # %#?? ! #??? | | ?????????????????????????# # #? %! #??? | | ?????????????????????????#+######% ## ##+#####??? | | ????????????????????????## ##### # # ##?? | | ????????????? ######## # #* #?? | | ??????????????? % # #%! # #?? | | ????????????? ######## = # #[ ###?? | | ?????????????????# #k ###" %%[%# #% # ## | | ?????????????????# # #?#" /%!#### # | | ?????????????????# "" # #?# *# + | | ?????????????????# S"" + #?#" [+= # | | ?????????????????# "" # #?#"T !# ##### | | ?????????????????# # #?#"" !#==Y" #???? | | ????????H????????######## #?# # " " #???? | | ?????????????????######## #?# "" # #???? | | ?????????????????# # #?# """ #######???? | | ?????????????# ??# g*#[ #?# """ #?????????? | | ?????????????# #[ s% #?# #?????????? | | ?????????????# /% =%#@ #?##########?????????? | | ?????????????# #* !%=#% #????????????????????? | | ??????????? ??# / s #????????????????????? | | ??????????###????#########/##????????????????????? | | ?????????????????????????? ?????????????????????? | | ??????????????????????????"""????????????????????? | | ??????????????????????????""""???????????????????? | | ??????????????????????????""""???????????????????? | | ??????????????????????????"""" ??????????????????? | | ?????????????????????????????????????????????????? | | ?????????????????????????????????????????????????? | | ?????????????????????????????????????????????????? | | ?????????????????????????????????????????????????? | | ?????????????????????????????????????????????????? | | ?????????????????????????????????????????????????? | | ?????????????????????????????????????????????????? | | ?????????????????????????????????????????????????? | | ?????????????????????????????????????????????????? | | ?????????????????????????????????????????????????? | | ?????????????????????????????????????????????????? | | ?????????????????????????????????????????????????? | | ?????????????????????????????????????????????????? | | ?????????????????????????????????????????????????? | | ?????????????????????????????????????????????????? | | ?????????????????????????????????????????????????? | +----------------------------------------------------+ Best States ------------- Heat Dissipation 41 Energy Generation 27 Energy Capacity 450 Matter Stores 372 Matter Capacity 400 Sight Range 16 Terrain Scan Density 10 Armor Coverage 300 Evasion (%) 55 Recoil Reduction 2 Offensive Hacking 10 Defensive Hacking 10 Item Schematics ----------------- Heat Sink | -8/Materials | Extracted Aluminum Leg | -8/Materials | Extracted Robot Schematics ------------------ None Fabricated ------------ Nothing Alien Tech Used ----------------- None Achievements -------------- Error 47 Factory Defaults Please Form A Line Release The Drones! Challenges ------------ None Game ------ Seed CorruptionSmallMantle Manual? 0 Play Time 00:58:59 Cumulative 6.3 hours Start 2024.05.12 @ 20:13:28 End 2024.05.13 @ 16:23:50 Sessions 1 Manual Loads 0 Difficulty Rogue Special Mode None Game No. 11 Rogue 11 Adventurer 0 Explorer 0 Win Type - Total 0 Types 0/0/0/0/0/0/0/0/0 Lore% 3 Gallery% 11 Achievement% 14 Wizard Run 0 Options --------- Layout 1 ASCII 0 Keyboard 0 Movement Mouse Keybinds 0 Fullscreen 1 Font 24/Smallcaps Map View 50x35 Zoom Use 0% Tactical HUD 1 Map Filters NONE Filters NONE Steam 1 RUN: 343d6335-eacc-4a15-bedc-9bef88388e91